[Event "44th Chess Olympiad Open 2022"]
[Site "Chennai"]
[Date "2022.08.08"]
[Round "10.15"]
[White "Cordova, Emilio"]
[Black "Jobava, Baadur"]
[Result "1-0"]
[ECO "D02"]
[WhiteElo "2549"]
[BlackElo "2585"]
[Annotator "TA"]
[PlyCount "91"]
[EventDate "2022.07.29"]
[EventType "team-tourn"]
[EventCountry "IND"]
[SourceTitle "playchess.com"]
[Source "ChessBase"]
[SourceQuality "1"]
[WhiteTeam "Peru"]
[BlackTeam "Georgia"]
[WhiteTeamCountry "PER"]
[BlackTeamCountry "GEO"]
[TimeControl "40/5400+30:1800+30"]

{[%evp 9,91,-13,26,20,37,37,45,40,46,46,45,38,51,28,65,53,66,60,56,60,76,30,39,30,126,118,125,128,241,238,226,222,376,369,521,534,528,130,506,500,746,399,383,366,655,643,2101,2101,1803,1686,1611,1238,1259,1285,1145,1072,5397,972,914,929,582,0,5489,5481,3122,2450,2510,2260,5506,3176,6103,6203,5457,5393,5306,5269,29981,29982,29982,29983,29983,29984,6415,5525]} 1. Nf3 {[%emt 0:00:06]} d5 {[%emt 0:00:22]} 2. g3 {[%emt 0:01:14]} Nc6 {[%emt 0:00:11]} 3. d4 {[%emt 0:00:06]} Bf5 {[%emt 0:00:05]} 4. c4 {[%emt 0:00:24]} e6 {[%emt 0:00:32]} 5. Bg2 {[%emt 0:00:38]} Bb4+ {[%emt 0:03:07]} (5... Nb4 $5 {[%cal Rb4c2]} 6. Na3 Nc6 $11) 6. Bd2 {[%emt 0:02:05] D02: 1 d4 d5 2 Nf3 sidelines, including 2...Nf6 3 g3 and 2...Nf6 3 Bf4.} Nge7 {[%emt 0:01:06]} 7. O-O {[%emt 0:09:16]} O-O {[%emt 0:03:30] [#]} 8. a3 $146 {[%emt 0:02:29] White is slightly better.} ({Predecessor:} 8. Qb3 Bxd2 9. Nbxd2 Na5 10. Qa4 Nxc4 11. Nxc4 dxc4 12. Qxc4 Be4 13. Rac1 Nc6 14. Rfd1 {1-0 (57) Birnbaum,W-Dohnow,T Mecklenburg VP 2004}) 8... Bxd2 {[%emt 0:00:12]} 9. Nbxd2 {[%emt 0:00:05]} a5 {[%emt 0:00:51]} 10. Rc1 {[%emt 0:00:48]} h6 {[%emt 0:00:13]} 11. Re1 {[%emt 0:07:43]} Qb8 {[%emt 0:02:41]} 12. e3 {[%emt 0:01:52][%cal Be2e3,Be3e4,Be4d5][%mdl 32]} a4 {[%emt 0:00:52]} 13. Nh4 {[%emt 0:06:05]} Bh7 {[%emt 0:01:38]} 14. cxd5 {[%emt 0:05:35]} exd5 {[%emt 0:00:08]} 15. Rc5 {[%emt 0:00:03]} ({Better is} 15. Nb1 $16) 15... Rd8 $11 {[%emt 0:03:10]} 16. Qh5 {[%emt 0:02:10][%cal Rg2d5]} g5 {[%emt 0:22:17] Black is on the road to losing.} (16... Ra5 $1 $11 {remains equal.}) 17. e4 $16 {[%emt 0:18:07][%cal Re4d5] White is more active.} (17. Qxh6 gxh4 18. Ne4 Bxe4) 17... gxh4 {[%emt 0:13:13]} 18. exd5 {[%emt 0:00:04]} b6 {[%emt 0:08:56]} (18... Bg6 $16 19. Qg4 Qc8 20. Qxc8 Raxc8) 19. Rxc6 $18 {[%emt 0:23:58]} (19. dxc6 bxc5 20. Rxe7 Bg6 21. Qxh6 Qxb2 $15) 19... Nxc6 {[%emt 0:00:12]} 20. Be4 $1 {[%emt 0:00:03]} Re8 $2 {[%emt 0:25:02]} (20... Nxd4 {is a self mate.} 21. Bxh7+ Kg7 22. Re7 $1 Rf8 23. Bd3) (20... Bxe4 $2 21. Nxe4 (21. Rxe4 Rd6 $16) 21... Qc8 22. Qxh6 $18) (20... f5 {keeps fighting.}) 21. Bxh7+ {[%emt 0:04:07]} Kxh7 {[%emt 0:00:32]} (21... Kg7 $142 22. Re4 Rxe4 23. Bxe4 Qd8) 22. Ne4 {[%emt 0:11:12][%cal Bd2e4,Be4f6,Bf6d7][%mdl 32] Threatening mate with Ng5+.} Qd8 {[%emt 0:08:18] Prevents Ng5+.} 23. Qxf7+ {[%emt 0:00:06]} Kh8 {[%emt 0:00:02] [#]} 24. Qg6 $1 {[%emt 0:00:31] Re3 is the strong threat.} Re7 {[%emt 0:00:04][%cal Od8f8]} 25. Qxh6+ {[%emt 0:01:09]} ({Less strong is} 25. dxc6 Qf8 $14) 25... Rh7 {[%emt 0:00:52]} 26. Qxc6 {[%emt 0:00:04][%cal Oe4g5] Threatens to win with Ng5!} Rb8 $2 {[%emt 0:00:44]} (26... Re7 27. Re3 Qf8) 27. Nf6 {[%emt 0:01:00] Black must now prevent Re8+.} Re7 {[%emt 0:02:56] Prevents Re8+.} 28. Re5 {[%emt 0:00:22]} Rxe5 {[%emt 0:01:12]} 29. dxe5 {[%emt 0:00:05][%mdl 4096] Endgame KQR-KQN} Qe7 {[%emt 0:00:33]} 30. Nd7 {[%emt 0:00:31]} Rc8 {[%emt 0:00:42]} 31. Qh6+ {[%emt 0:00:39]} Qh7 {[%emt 0:00:05]} 32. Qf6+ {[%emt 0:00:09]} Kg8 {[%emt 0:00:06]} 33. Qe6+ {[%emt 0:00:32]} (33. Qg5+ $142 Qg7 34. Nf6+ Kf8 35. Qxh4) 33... Kg7 {[%emt 0:00:21]} 34. Qe7+ {[%emt 0:01:53]} Kh8 {[%emt 0:00:07]} 35. Qf6+ {[%emt 0:00:04]} (35. Qxh7+ $142 Kxh7 36. g4) 35... Kg8 {[%emt 0:00:05]} 36. Qg5+ {[%emt 0:00:03]} Qg7 {[%emt 0:01:29]} 37. Nf6+ {[%emt 0:00:05]} Kf8 {[%emt 0:00:28]} 38. Qxh4 {[%emt 0:00:10]} Kf7 {[%emt 0:00:32]} 39. Qxa4 {[%emt 0:00:09] White threatens Qd7+ and mate.} Rd8 {[%emt 0:00:14] Inhibits Qd7+.} 40. Qf4 {[%emt 0:00:54] Nh5+ would kill now.} Ke7 {[%emt 0:00:47]} 41. Qf5 {[%emt 0:30:32]} Qf7 {[%emt 0:30:26]} 42. Qg5 {[%emt 0:00:00] White wants to mate with Nh5+.} Ra8 {[%emt 0:00:00] [#]} 43. Nd7+ $1 {[%emt 0:00:00][%mdl 512]} Ke8 {[%emt 0:00:00]} 44. e6 {[%emt 0:00:00]} Qf3 {[%emt 0:00:00]} 45. Qg8+ {[%emt 0:00:00]} Ke7 {[%emt 0:00:00]} 46. Qxa8 {[%emt 0:00:00] Weighted Error Value: White=0.43/Black=0.73} 1-0

[Event "44th Chess Olympiad Open 2022"]
[Site "Chennai"]
[Date "2022.08.08"]
[Round "10.15"]
[White "Terry, Renato"]
[Black "Paichadze, Luka"]
[Result "1/2-1/2"]
[ECO "E16"]
[WhiteElo "2502"]
[BlackElo "2561"]
[Annotator "TA"]
[PlyCount "25"]
[EventDate "2022.07.29"]
[EventType "team-tourn"]
[EventCountry "IND"]
[SourceTitle "playchess.com"]
[Source "ChessBase"]
[SourceQuality "1"]
[WhiteTeam "Peru"]
[BlackTeam "Georgia"]
[WhiteTeamCountry "PER"]
[BlackTeamCountry "GEO"]
[TimeControl "40/5400+30:1800+30"]

{[%evp 24,25,31,0]} 1. d4 {[%emt 0:00:06]} Nf6 {[%emt 0:00:05]} 2. Nf3 {[%emt 0:00:09]} e6 {[%emt 0:00:08]} 3. c4 {[%emt 0:00:07]} b6 {[%emt 0:00:26]} 4. g3 {[%emt 0:01:44]} Bb7 {[%emt 0:00:11]} 5. Bg2 {[%emt 0:00:16]} Bb4+ {[%emt 0:00:09]} 6. Bd2 {[%emt 0:01:39]} a5 {[%emt 0:00:33]} 7. O-O {[%emt 0:00:06]} O-O {[%emt 0:00:07]} 8. Bg5 {[%emt 0:03:26]} Be7 {[%emt 0:01:15]} 9. Qc2 {[%emt 0:05:12] [#]} Be4 $146 {[%emt 0:08:21]} ({Predecessor:} 9... h6 10. Bxf6 Bxf6 11. Nc3 Nc6 12. Rad1 d5 13. a3 Ne7 14. cxd5 Nxd5 15. Nb1 g6 16. e4 Ne7 17. Nc3 Bg7 18. h4 Qd7 19. Ne5 Qe8 {1-0 (60) Babula,V (2561)-Stocek,J (2584) Zlin 2021}) 10. Qd2 {[%emt 0:02:24]} Bb7 {[%emt 0:00:59]} 11. Qc2 {[%emt 0:01:20]} Be4 {[%emt 0:00:15]} 12. Qd2 {[%emt 0:00:28]} Bb7 {[%emt 0:00:09]} 13. Qc2 {[%emt 0:00:33]} 1/2-1/2

[Event "44th Chess Olympiad Open 2022"]
[Site "Chennai"]
[Date "2022.08.08"]
[Round "10.16"]
[White "Theodorou, Nikolas"]
[Black "Stefansson, Hannes"]
[Result "1/2-1/2"]
[ECO "E05"]
[WhiteElo "2575"]
[BlackElo "2541"]
[Annotator "TA"]
[PlyCount "80"]
[EventDate "2022.07.29"]
[EventType "team-tourn"]
[EventCountry "IND"]
[SourceTitle "playchess.com"]
[Source "ChessBase"]
[SourceQuality "1"]
[WhiteTeam "Greece"]
[BlackTeam "Iceland"]
[WhiteTeamCountry "GRE"]
[BlackTeamCountry "ISL"]
[TimeControl "40/5400+30:1800+30"]

{[%evp 13,80,17,11,0,21,31,21,15,15,12,9,5,14,15,18,16,14,10,16,20,20,21,27,24,29,17,20,10,2,8,8,-42,-45,-45,-46,-59,-23,-26,-14,-47,-47,-48,0,-48,-48,-50,-52,-103,-63,-72,0,0,0,0,0,0,0,0,0,0,0,0,0,0,0,0,0,0,0]} 1. Nf3 {[%emt 0:00:07]} d5 {[%emt 0:00:39][%cal Bd7d5,Bd5c4][%mdl 32]} 2. d4 {[%emt 0:00:11]} Nf6 {[%emt 0:00:24]} 3. c4 {[%emt 0:00:15]} e6 {[%emt 0:00:47]} 4. g3 {[%emt 0:00:20]} Be7 {[%emt 0:00:59]} 5. Bg2 {[%emt 0:00:07]} O-O {[%emt 0:00:47]} 6. O-O {[%emt 0:00:27]} dxc4 {[%emt 0:01:17]} 7. Qc2 {[%emt 0:03:47]} b5 {[%emt 0:01:40]} 8. a4 {[%emt 0:00:14] E05: Open Catalan: 5 Nf3 Be7.} Bb7 {[%emt 0:00:52]} 9. axb5 {[%emt 0:02:16]} a6 {[%emt 0:00:43]} 10. bxa6 {[%emt 0:01:50]} Nxa6 {[%emt 0:00:22][%cal Bb8a6,Ba6b4,Bb4c2][%mdl 32]} 11. Qxc4 {[%emt 0:00:10]} Bd5 {[%emt 0:00:37]} 12. Qc3 {[%emt 0:00:23]} c5 {[%emt 0:00:56]} 13. Be3 {[%emt 0:00:29]} Ne4 {[%emt 0:00:53]} 14. Qe1 {[%emt 0:00:38]} Nb4 {[%emt 0:00:45]} 15. Rxa8 {[%emt 0:00:29]} Qxa8 {[%emt 0:00:19]} 16. Nc3 {[%emt 0:00:23]} Nxc3 {[%emt 0:01:04]} 17. bxc3 {[%emt 0:00:17]} Nc2 {[%emt 0:04:17]} 18. Qd2 {[%emt 0:00:57]} Nxe3 {[%emt 0:00:14]} 19. Qxe3 {[%emt 0:00:06]} h6 {[%emt 0:00:56] [#]} 20. Qf4 $146 {[%emt 0:02:50]} ({Predecessor:} 20. Rd1 cxd4 21. cxd4 Rd8 22. Qf4 Qa4 23. Qd2 Bf6 24. e3 g6 25. h4 h5 26. Qe2 {1-0 (67) Martirosyan,H (2633)-Gavrilescu,D (2512) Terme Catez 2022}) 20... Bg5 {[%emt 0:02:32] A strong pair of Bishops.} 21. Qg4 {[%emt 0:04:42]} Bf6 {[%emt 0:00:31]} 22. c4 {[%emt 0:18:24]} (22. Ne1 $11) 22... Bxc4 $15 {[%emt 0:07:34]} 23. Ne5 {[%emt 0:12:37]} Qa2 {[%emt 0:03:02] [#] aiming for ...Bxe5.} 24. Bf3 {[%emt 0:25:19]} Bxe5 {[%emt 0:07:36]} 25. dxe5 {[%emt 0:00:03]} Rb8 {[%emt 0:14:15]} 26. Rc1 {[%emt 0:15:51] Inhibits Qc2.} Rb1 {[%emt 0:02:08]} 27. Rxb1 {[%emt 0:00:47]} Qxb1+ {[%emt 0:00:08][%mdl 4096] Endgame KQB-KQB} 28. Kg2 {[%emt 0:00:03]} Qc2 {[%emt 0:01:49]} 29. h4 {[%emt 0:00:10]} g6 {[%emt 0:08:55]} 30. Kh2 {[%emt 0:05:50]} (30. Qe4 $15 Qxe4 31. Bxe4) 30... Bb5 {[%emt 0:00:56]} 31. Kg2 {[%emt 0:00:32] [#]} Qd2 {[%emt 0:05:03]} ({Black should play} 31... Ba6 $1 $17) 32. Qf4 $1 $11 {[%emt 0:03:56] The position is equal.} Qxf4 {[%emt 0:17:49]} 33. gxf4 {[%emt 0:00:02] KB-KB} f6 {[%emt 0:00:36]} 34. Kf1 {[%emt 0:01:51]} c4 {[%emt 0:04:14]} 35. Ke1 {[%emt 0:00:22]} c3 {[%emt 0:00:40]} 36. Kd1 {[%emt 0:01:03]} Ba4+ {[%emt 0:00:14]} 37. Kc1 {[%emt 0:00:02]} fxe5 {[%emt 0:08:32]} 38. fxe5 {[%emt 0:00:02]} Kf7 {[%emt 0:01:25]} 39. Bg4 {[%emt 0:00:59]} g5 {[%emt 0:00:46]} 40. hxg5 {[%emt 0:00:15]} hxg5 {[%emt 0:00:17] Weighted Error Value: White=0.06 (flawless) /Black=0.07 (flawless)} 1/2-1/2

[Event "44th Chess Olympiad Open 2022"]
[Site "Chennai"]
[Date "2022.08.08"]
[Round "10.16"]
[White "Gretarsson, Hjorvar Steinn"]
[Black "Mastrovasilis, Dimitrios"]
[Result "1/2-1/2"]
[ECO "A46"]
[WhiteElo "2563"]
[BlackElo "2599"]
[Annotator "TA"]
[PlyCount "62"]
[EventDate "2022.07.29"]
[EventType "team-tourn"]
[EventCountry "IND"]
[SourceTitle "playchess.com"]
[Source "ChessBase"]
[SourceQuality "1"]
[WhiteTeam "Iceland"]
[BlackTeam "Greece"]
[WhiteTeamCountry "ISL"]
[BlackTeamCountry "GRE"]
[TimeControl "40/5400+30:1800+30"]

{[%evp 9,62,8,12,8,22,3,12,0,27,22,26,21,49,24,25,29,28,10,20,-7,-2,-18,0,0,0,0,0,0,0,0,4,5,7,6,8,0,7,0,0,0,0,0,0,0,0,0,0,0,7,0,0,0,4,7,7]} 1. d4 {[%emt 0:00:03]} d5 {[%emt 0:00:11]} 2. Nf3 {[%emt 0:00:04]} Nf6 {[%emt 0:00:08]} 3. g3 {[%emt 0:00:04]} e6 {[%emt 0:01:00]} 4. Bg2 {[%emt 0:00:06]} b5 {[%emt 0:02:56]} 5. O-O {[%emt 0:00:05]} Be7 {[%emt 0:00:20]} 6. a4 {[%emt 0:00:04] A46: 1 d4 Nf6 2 Nf3 e6: Torre, London and Colle Systems.} b4 {[%emt 0:00:15]} 7. c4 {[%emt 0:00:57]} bxc3 {[%emt 0:00:31]} 8. bxc3 {[%emt 0:00:08][%cal Oc3c4]} Bb7 {[%emt 0:04:28]} 9. Ne5 {[%emt 0:10:05]} Nbd7 {[%emt 0:14:02]} 10. c4 {[%emt 0:06:58]} c5 {[%emt 0:00:59]} 11. Ba3 {[%emt 0:21:51]} (11. Nc3 $5 {[%cal Ra1b1]}) 11... Rc8 {[%emt 0:05:17]} 12. Nxd7 {[%emt 0:14:30]} Qxd7 {[%emt 0:00:30]} 13. dxc5 {[%emt 0:03:52]} Bxc5 {[%emt 0:07:03] [#] The position is equal.} 14. Qb3 $146 {[%emt 0:05:46]} ({Predecessor:} 14. cxd5 Bxd5 15. Bxc5 Rxc5 16. Na3 O-O 17. Bxd5 Rxd5 18. Qb3 Rd8 19. Nc4 {½-½ (19) Suder,R (2123)-Wilks,S (1935) London 2016}) 14... O-O {[%emt 0:06:06]} 15. Rd1 {[%emt 0:06:07]} (15. Rc1 {is interesting.} Qe7 16. cxd5 Bxd5 17. Bxd5 Nxd5 18. Rxc5 Rxc5 19. Nd2) 15... Bxa3 {[%emt 0:17:27]} 16. Nxa3 {[%emt 0:00:10]} Bc6 {[%emt 0:00:10]} 17. Nb5 {[%emt 0:03:13][%cal Oe2e4]} a6 {[%emt 0:02:13]} 18. cxd5 {[%emt 0:02:06]} Bxd5 {[%emt 0:00:40]} 19. Bxd5 {[%emt 0:01:28]} axb5 {[%emt 0:00:28]} ({Don't take} 19... Nxd5 20. e4 axb5 21. axb5 $14 (21. exd5 bxa4 22. Rxa4 exd5 $11)) 20. Bf3 {[%emt 0:01:13]} bxa4 {[%emt 0:00:11]} 21. Rxa4 {[%emt 0:00:56]} Qc7 {[%emt 0:02:07]} 22. Rb4 {[%emt 0:01:49]} Rb8 {[%emt 0:01:55]} 23. Qc4 {[%emt 0:02:55]} Qxc4 {[%emt 0:02:35]} 24. Rxc4 {[%emt 0:00:05]} Rfc8 {[%emt 0:00:54]} 25. Rdc1 {[%emt 0:00:21]} Rxc4 {[%emt 0:00:12]} 26. Rxc4 $11 {[%emt 0:00:04][%mdl 4096] Endgame KRB-KRN} h6 {[%emt 0:00:53]} 27. h4 {[%emt 0:00:07]} Kf8 {[%emt 0:01:03]} 28. Kg2 {[%emt 0:00:08]} Rd8 {[%emt 0:00:17]} 29. Rc5 {[%emt 0:02:15]} Ke7 {[%emt 0:02:44]} 30. Ra5 {[%emt 0:00:27]} Rd7 {[%emt 0:00:45]} 31. g4 {[%emt 0:00:53]} Rc7 {[%emt 0:00:17] Weighted Error Value: White=0.05 (flawless) /Black=0.04 (flawless)} 1/2-1/2

[Event "44th Chess Olympiad Open 2022"]
[Site "Chennai"]
[Date "2022.08.08"]
[Round "10.16"]
[White "Ioannidis, Evgenios"]
[Black "Gretarsson, Helgi Ass"]
[Result "1-0"]
[ECO "D13"]
[WhiteElo "2459"]
[BlackElo "2472"]
[Annotator "TA"]
[PlyCount "109"]
[EventDate "2022.07.29"]
[EventType "team-tourn"]
[EventCountry "IND"]
[SourceTitle "playchess.com"]
[Source "ChessBase"]
[SourceQuality "1"]
[WhiteTeam "Greece"]
[BlackTeam "Iceland"]
[WhiteTeamCountry "GRE"]
[BlackTeamCountry "ISL"]
[TimeControl "40/5400+30:1800+30"]

{[%evp 15,109,11,19,32,38,23,31,32,55,39,188,179,179,185,181,188,183,196,196,188,225,217,197,187,234,227,195,146,126,108,82,81,97,-20,-14,-41,0,0,3,3,6,11,58,0,0,0,0,0,0,0,0,0,126,0,0,0,115,115,115,115,111,78,69,52,78,56,96,89,217,187,154,116,202,202,295,312,343,343,398,368,568,600,1380,1236,12838,12839,12839,12839,12840,12840,12841,12842,12842,12843,7074,4437]} 1. d4 {[%emt 0:00:08]} d5 {[%emt 0:00:08]} 2. c4 {[%emt 0:00:20]} c6 {[%emt 0:00:05]} 3. Nc3 {[%emt 0:00:55]} Nf6 {[%emt 0:05:22]} 4. cxd5 {[%emt 0:00:29]} cxd5 {[%emt 0:00:11]} 5. Bf4 {[%emt 0:00:08]} Nc6 {[%emt 0:01:13]} 6. e3 {[%emt 0:00:16]} a6 {[%emt 0:08:55]} 7. Be2 {[%emt 0:00:49]} Bf5 {[%emt 0:12:03]} 8. Nf3 {[%emt 0:00:53]} e6 {[%emt 0:00:29]} 9. Qb3 {[%emt 0:00:36] D13: Slav Defence: Exchange variation without ...Bf5.} Ra7 {[%emt 0:12:58]} 10. Ne5 {[%emt 0:00:37]} Nxe5 {[%emt 0:01:39]} 11. Bxe5 {[%emt 0:00:12] White is slightly better.} Nd7 {[%emt 0:00:07]} 12. O-O {[%emt 0:01:36][%cal Bh1f1,Bf1c1,Bc1c7][%mdl 32] [#]} Qb6 $146 {[%emt 0:23:45]} (12... b5 $1 $14) ({Predecessor:} 12... Nxe5 13. dxe5 Be7 14. Qa4+ Kf8 15. Rfd1 Qb8 16. Qd4 b6 17. e4 dxe4 18. Nxe4 Bxe4 19. Qxe4 {0-1 (51) Smirnov,P (2544)-Artemiev,V (2709) Chess.com INT 2021}) 13. Rfc1 {[%emt 0:09:01]} Qxb3 {[%emt 0:04:05]} 14. axb3 {[%emt 0:00:06]} Nxe5 {[%emt 0:00:03]} 15. Nb5 $1 {[%emt 0:04:59]} (15. dxe5 $6 Ra8 $14) 15... Nc6 {[%emt 0:01:49]} (15... axb5 $2 16. Rxa7 Bd3 17. Rxb7 $1 $18) 16. Nxa7 {[%emt 0:00:29]} Nxa7 {[%emt 0:00:02]} 17. Rc7 {[%emt 0:00:08]} Bd6 {[%emt 0:09:39]} 18. Rxb7 {[%emt 0:00:09]} Nc8 {[%emt 0:05:44]} 19. g4 {[%emt 0:05:43][%mdl 1024] White has strong compensation.} ({Much less strong is} 19. Rxa6 $6 O-O 20. b4 g5 $16) 19... Bg6 {[%emt 0:00:00]} (19... Be4 $142 20. Rxa6 O-O) 20. Rxa6 $18 {[%emt 0:04:53] Intending Bb5+ and mate.} O-O {[%emt 0:00:00]} 21. h4 {[%emt 0:13:56]} (21. b4 $18) 21... h5 {[%emt 0:00:00]} 22. g5 {[%emt 0:01:10]} e5 {[%emt 0:00:00] Inhibits f4.} 23. Rd7 {[%emt 0:03:38] White is more active.} exd4 {[%emt 0:00:01]} 24. exd4 {[%emt 0:01:04]} (24. Raxd6 $16 {aiming for Ra6.} Nxd6 25. Rxd6) 24... Bf4 $11 {[%emt 0:00:28]} ({Don't take} 24... Re8 25. Bb5 $14) 25. Bf3 {[%emt 0:01:50]} Bf5 {[%emt 0:07:17]} (25... Bd3 $5 {[%cal Rd3a6]} 26. Ra1 g6 $11) 26. Rxd5 {[%emt 0:01:03]} g6 {[%emt 0:02:44]} 27. b4 {[%emt 0:01:56] Threatening b5.} Re8 {[%emt 0:00:52] And now ...Re1+ would win.} 28. Kg2 {[%emt 0:01:25]} Re1 {[%emt 0:01:43]} (28... Kg7 $11 {might be stronger.}) 29. Ra8 {[%emt 0:01:27]} (29. Rf6 $14 Kg7 30. Ra5) 29... Bd3 $1 {[%emt 0:01:08] This bishop pair is nice.} 30. Rxc8+ {[%emt 0:00:57]} Kg7 {[%emt 0:00:00]} 31. Kh3 {[%emt 0:02:31]} Rg1 {[%emt 0:00:53] ( -> ...Bf1+)} 32. Bg2 {[%emt 0:00:07]} Be2 {[%emt 0:02:02][%csl Gh5][%cal Re2g4]} 33. f3 {[%emt 0:01:39] Inhibits Bg4+. White threatens Rdd8 and mate.} Bd3 {[%emt 0:00:17]} (33... Bf1 $1 $11 34. Bxf1 Rg3+ 35. Kh2 Rxg5+ 36. Kh3 Rg3+ 37. Kh2 Rg5+ 38. Kh3 Rg3+ 39. Kh2 Rg5+) 34. Rcc5 {[%emt 0:22:33]} (34. Ra5 $1 $16) 34... Rd1 {[%emt 0:00:37]} 35. Rc3 {[%emt 0:04:32][%cal Od5e5]} Bb1 {[%emt 0:00:09]} (35... Rd2 $1 $11 36. Rxd3 Rxd3) 36. Rc6 $1 $16 {[%emt 0:03:00]} Rxd4 {[%emt 0:01:21] [#]} 37. Rf6 $1 {[%emt 0:01:17]} Rxb4 {[%emt 0:00:08] [#]} 38. Rxf4 $1 {[%emt 0:00:45]} Rxf4 {[%emt 0:00:01][%mdl 4096] Endgame KRB-KRB} 39. Rb5 $1 {[%emt 0:00:37] Against Rb4} Bd3 {[%emt 0:01:26]} 40. Rb8 {[%emt 0:01:05]} Rf5 {[%emt 0:00:34]} 41. Kg3 {[%emt 0:34:58]} Bb5 {[%emt 0:13:41]} (41... Rd5 $16) 42. b4 $18 {[%emt 0:00:00]} Rd5 {[%emt 0:00:05]} 43. Bh3 {[%emt 0:00:00]} Bc4 {[%emt 0:02:17] [#]} (43... Be2 $16) 44. Rb7 $1 {[%emt 0:00:00] Black must now prevent Be6.} Kf8 {[%emt 0:06:09]} (44... Ba6 $142 45. Rc7 Re5) 45. Bd7 {[%emt 0:00:00]} Rd6 {[%emt 0:01:35]} 46. Rc7 {[%emt 0:00:00]} Bd5 {[%emt 0:01:46]} 47. Kf4 {[%emt 0:00:00] Threatens to win with Ke5.} Rb6 {[%emt 0:00:33]} (47... Ba8 {is a better defense.} 48. Ba4 Rd8) 48. b5 {[%emt 0:00:00][%cal Bb4b5,Bb5b6][%mdl 32] White is clearly winning.} Bb7 {[%emt 0:00:39]} 49. Ke3 {[%emt 0:07:44]} Bd5 {[%emt 0:05:48]} 50. Kd4 {[%emt 0:00:23]} Bxf3 {[%emt 0:00:05]} 51. Kc5 {[%emt 0:00:05]} Rb8 {[%emt 0:00:06]} 52. b6 {[%emt 0:00:36]} Bb7 {[%emt 0:02:28]} 53. Bc6 {[%emt 0:00:14]} Ba6 {[%emt 0:00:15]} 54. Ra7 {[%emt 0:00:42]} Bc8 {[%emt 0:00:12]} 55. Bd5 {[%emt 0:00:04] Weighted Error Value: White=0.14 (very precise) /Black=0.36} 1-0